[Event "*** SCC Grand Prix: Titled Tuesday Blitz"]
[Site "Chess.com"]
[Date "2020.08.04"]
[Round "2"]
[White "peixe64"]
[Black "Gahan-MG"]
[Result "1-0"]
[WhiteElo "2316"]
[BlackElo "2469"]
[TimeControl "180+1"]
[EndTime "14:04:25 PDT"]
[Termination "peixe64 won by resignation"]

1. e4 {[%clk 0:03:00.9]} 1... Nf6 {[%clk 0:02:58.9]} 2. e5 {[%clk 0:03:00.9]}
2... Nd5 {[%clk 0:02:59.2]} 3. d4 {[%clk 0:03:01.4]} 3... d6 {[%clk 0:02:59.1]}
4. Nf3 {[%clk 0:03:01.8]} 4... g6 {[%clk 0:02:58.9]} 5. Be2 {[%clk 0:02:48]}
5... Bg7 {[%clk 0:02:58.5]} 6. O-O {[%clk 0:02:47.5]} 6... O-O {[%clk
0:02:58.3]} 7. c4 {[%clk 0:02:42.1]} 7... Nb6 {[%clk 0:02:57.4]} 8. exd6 {[%clk
0:02:41.8]} 8... exd6 {[%clk 0:02:58.3]} 9. Nc3 {[%clk 0:02:39.9]} 9... Nc6
{[%clk 0:02:58.2]} 10. Be3 {[%clk 0:02:36.3]} 10... Bg4 {[%clk 0:02:57.8]} 11.
b3 {[%clk 0:02:33.2]} 11... Re8 {[%clk 0:02:56]} 12. h3 {[%clk 0:02:29.5]} 12...
Bxf3 {[%clk 0:02:55.6]} 13. Bxf3 {[%clk 0:02:29.5]} 13... Qh4 {[%clk 0:02:54.6]}
14. Nb5 {[%clk 0:02:18.4]} 14... Re7 {[%clk 0:02:48]} 15. c5 {[%clk 0:01:50.3]}
15... dxc5 {[%clk 0:02:41.3]} 16. dxc5 {[%clk 0:01:49.4]} 16... Bxa1 {[%clk
0:02:35.7]} 17. cxb6 {[%clk 0:01:38]} 17... Be5 {[%clk 0:02:31.6]} 18. Bxc6
{[%clk 0:01:10.8]} 18... bxc6 {[%clk 0:02:28.5]} 19. b7 {[%clk 0:01:10.4]} 19...
Rb8 {[%clk 0:02:26.7]} 20. Nxa7 {[%clk 0:01:06.4]} 20... Rxb7 {[%clk 0:02:26.8]}
21. Qd8+ {[%clk 0:01:04.1]} 21... Kg7 {[%clk 0:02:26.7]} 22. Nxc6 {[%clk
0:01:01.3]} 22... Bf6 {[%clk 0:02:16]} 23. Nxe7 {[%clk 0:00:55.6]} 23... Bxe7
{[%clk 0:02:16.9]} 24. Qd4+ {[%clk 0:00:54.4]} 24... Bf6 {[%clk 0:02:13.3]} 25.
Qxh4 {[%clk 0:00:54.1]} 25... Bxh4 {[%clk 0:02:14.2]} 26. Rd1 {[%clk 0:00:53.5]}
26... Bf6 {[%clk 0:02:11.6]} 27. Rd7 {[%clk 0:00:52.4]} 27... Be5 {[%clk
0:02:08.1]} 28. Bc5 {[%clk 0:00:46.8]} 28... Kf6 {[%clk 0:02:05.7]} 29. b4
{[%clk 0:00:44.1]} 29... h5 {[%clk 0:02:02.9]} 30. a4 {[%clk 0:00:42.8]} 30...
Bc3 {[%clk 0:01:59.8]} 31. b5 {[%clk 0:00:40]} 31... Ba5 {[%clk 0:01:56.3]} 32.
Kf1 {[%clk 0:00:37.4]} 32... Ke6 {[%clk 0:01:55.6]} 33. Re7+ {[%clk 0:00:37.1]}
33... Kd5 {[%clk 0:01:55.6]} 34. Be3 {[%clk 0:00:36.2]} 34... f6 {[%clk
0:01:48.1]} 35. Rg7 {[%clk 0:00:36.2]} 35... g5 {[%clk 0:01:48.3]} 36. g3 {[%clk
0:00:33.6]} 36... Kc4 {[%clk 0:01:45.3]} 37. Rf7 {[%clk 0:00:31.1]} 37... Bc3
{[%clk 0:01:44.7]} 38. b6 {[%clk 0:00:24]} 38... Be5 {[%clk 0:01:41]} 39. a5
{[%clk 0:00:21.3]} 39... Kb5 {[%clk 0:01:39.9]} 40. f4 {[%clk 0:00:19.5]} 40...
gxf4 {[%clk 0:01:36.1]} 41. gxf4 {[%clk 0:00:20.4]} 41... Bd6 {[%clk 0:01:36.6]}
42. Rxf6 {[%clk 0:00:17.5]} 42... Kxa5 {[%clk 0:01:34.4]} 43. Rf5+ {[%clk
0:00:17]} 43... Ka6 {[%clk 0:01:29.4]} 44. bxc7 {[%clk 0:00:17.3]} 44... Bxc7
{[%clk 0:01:23.9]} 45. Rxh5 {[%clk 0:00:17.1]} 45... Rb3 {[%clk 0:01:24.5]} 46.
Ke2 {[%clk 0:00:16.8]} 46... Rb2+ {[%clk 0:01:23.2]} 47. Kf3 {[%clk 0:00:16.5]}
47... Rb3 {[%clk 0:01:23.9]} 48. Rd5 {[%clk 0:00:13.6]} 48... Bb6 {[%clk
0:01:22.4]} 49. Re5 {[%clk 0:00:13.5]} 49... Kb7 {[%clk 0:01:20.1]} 50. h4
{[%clk 0:00:14]} 50... Bd4 {[%clk 0:01:17.4]} 51. Re7+ {[%clk 0:00:13.7]} 51...
Kc6 {[%clk 0:01:17.4]} 52. Re4 {[%clk 0:00:13.7]} 52... Bg7 {[%clk 0:01:15.6]}
53. h5 {[%clk 0:00:13.4]} 53... Kd6 {[%clk 0:01:14.5]} 54. f5 {[%clk 0:00:13.4]}
54... Kd7 {[%clk 0:01:10.3]} 55. Re6 {[%clk 0:00:13.8]} 55... Rb4 {[%clk
0:01:07.9]} 56. Bf4 {[%clk 0:00:12.7]} 56... Rb3+ {[%clk 0:01:07.7]} 57. Kg4
{[%clk 0:00:13.1]} 57... Rb1 {[%clk 0:01:08.3]} 58. Rg6 {[%clk 0:00:10.1]} 58...
Bf8 {[%clk 0:01:06.4]} 59. h6 {[%clk 0:00:09.8]} 59... Rh1 {[%clk 0:01:05.2]}
60. f6 {[%clk 0:00:07]} 60... Ke6 {[%clk 0:01:04.5]} 61. Bg5 {[%clk 0:00:04.9]}
61... Kf7 {[%clk 0:01:03.4]} 62. Rg7+ {[%clk 0:00:02.5]} 62... Bxg7 {[%clk
0:01:03.8]} 63. fxg7 {[%clk 0:00:03.1]} 63... Kg8 {[%clk 0:01:00.9]} 64. Kf5
{[%clk 0:00:04]} 64... Kh7 {[%clk 0:00:58.9]} 65. Bf4 {[%clk 0:00:04.9]} 65...
Rf1 {[%clk 0:00:56]} 66. Kg5 {[%clk 0:00:04.9]} 66... Rf3 {[%clk 0:00:53.4]} 67.
Kf5 {[%clk 0:00:05.2]} 67... Rf1 {[%clk 0:00:52.5]} 68. Kg5 {[%clk 0:00:05.4]}
68... Rb1 {[%clk 0:00:48.9]} 69. Be5 {[%clk 0:00:05.4]} 69... Rb6 {[%clk
0:00:47.3]} 70. Bf4 {[%clk 0:00:04.8]} 70... Ra6 {[%clk 0:00:39.8]} 71. Be5
{[%clk 0:00:05.2]} 71... Rg6+ {[%clk 0:00:38.2]} 72. Kf5 {[%clk 0:00:05.3]}
72... Kxh6 {[%clk 0:00:37.1]} 73. Bf6 {[%clk 0:00:04.6]} 73... Kh7 {[%clk
0:00:36.3]} 74. Be5 {[%clk 0:00:02.3]} 74... Rg2 {[%clk 0:00:35]} 75. Bf6 {[%clk
0:00:03.2]} 75... Kg8 {[%clk 0:00:35.2]} 76. Ke6 {[%clk 0:00:04.1]} 76... Re2+
{[%clk 0:00:34.4]} 77. Be5 {[%clk 0:00:05]} 77... Re1 {[%clk 0:00:34.7]} 78. Kf5
{[%clk 0:00:05.9]} 78... Kf7 {[%clk 0:00:34.5]} 79. Kf4 {[%clk 0:00:05.8]} 79...
Rf1+ {[%clk 0:00:33.5]} 80. Ke4 {[%clk 0:00:06.4]} 80... Rg1 {[%clk 0:00:33.5]}
81. Kf4 {[%clk 0:00:07.3]} 81... Ke6 {[%clk 0:00:33.1]} 82. Bd4 {[%clk
0:00:06.4]} 82... Kd5 {[%clk 0:00:29.8]} 83. Bxg1 {[%clk 0:00:06.3]} 1-0

[Event "*** SCC Grand Prix: Titled Tuesday Blitz"]
[Site "Chess.com"]
[Date "2020.08.04"]
[Round "2"]
[White "Steven_Rojas"]
[Black "Maghalashvili"]
[Result "1/2-1/2"]
[WhiteElo "2445"]
[BlackElo "2741"]
[TimeControl "180+1"]
[EndTime "14:04:29 PDT"]
[Termination "Game drawn by repetition"]

1. c4 {[%clk 0:03:00.9]} 1... g6 {[%clk 0:02:59.2]} 2. Nc3 {[%clk 0:03:00.2]}
2... Bg7 {[%clk 0:03:00.1]} 3. g3 {[%clk 0:03:00.5]} 3... c5 {[%clk 0:03:00.2]}
4. Bg2 {[%clk 0:03:01]} 4... Nc6 {[%clk 0:03:01.1]} 5. Nf3 {[%clk 0:03:01.4]}
5... Nh6 {[%clk 0:03:01.1]} 6. h4 {[%clk 0:02:51]} 6... Nf5 {[%clk 0:02:59.4]}
7. d3 {[%clk 0:02:49.1]} 7... h5 {[%clk 0:02:57.9]} 8. Bd2 {[%clk 0:02:39.5]}
8... b6 {[%clk 0:02:53.4]} 9. O-O {[%clk 0:02:28.8]} 9... Bb7 {[%clk 0:02:50.5]}
10. e3 {[%clk 0:02:22.2]} 10... O-O {[%clk 0:02:46.2]} 11. Qe2 {[%clk
0:02:21.8]} 11... e6 {[%clk 0:02:44.7]} 12. Ne1 {[%clk 0:02:03.8]} 12... Na5
{[%clk 0:02:42]} 13. a3 {[%clk 0:01:38.6]} 13... Bxg2 {[%clk 0:02:39.8]} 14.
Nxg2 {[%clk 0:01:39.5]} 14... Nb3 {[%clk 0:02:40.2]} 15. Rad1 {[%clk 0:01:38.7]}
15... d5 {[%clk 0:02:38]} 16. cxd5 {[%clk 0:01:31.2]} 16... exd5 {[%clk
0:02:36.3]} 17. Be1 {[%clk 0:01:25.9]} 17... d4 {[%clk 0:02:33.2]} 18. Ne4
{[%clk 0:01:26.3]} 18... dxe3 {[%clk 0:02:30.7]} 19. fxe3 {[%clk 0:01:27.2]}
19... Re8 {[%clk 0:02:21.9]} 20. Qc2 {[%clk 0:01:20]} 20... Qd5 {[%clk
0:02:12.9]} 21. Bc3 {[%clk 0:01:17.4]} 21... Na5 {[%clk 0:01:58.7]} 22. Bxg7
{[%clk 0:01:06.3]} 22... Kxg7 {[%clk 0:01:59.6]} 23. Qf2 {[%clk 0:01:01.8]}
23... Qe5 {[%clk 0:01:46.9]} 24. Nf4 {[%clk 0:01:01.7]} 24... Nh6 {[%clk
0:01:40.9]} 25. Nf6 {[%clk 0:00:31.2]} 25... Kxf6 {[%clk 0:01:16.8]} 26. d4
{[%clk 0:00:21.2]} 26... Qf5 {[%clk 0:01:07]} 27. dxc5 {[%clk 0:00:16.3]} 27...
Kg7 {[%clk 0:00:58.4]} 28. b4 {[%clk 0:00:16.2]} 28... Nc4 {[%clk 0:00:55.1]}
29. Rd5 {[%clk 0:00:12.6]} 29... Qe4 {[%clk 0:00:45.1]} 30. Rd4 {[%clk
0:00:11.6]} 30... Qxe3 {[%clk 0:00:34.3]} 31. Rxc4 {[%clk 0:00:11.8]} 31... Ng4
{[%clk 0:00:29.7]} 32. Qxe3 {[%clk 0:00:04.6]} 32... Nxe3 {[%clk 0:00:30.6]} 33.
Rfc1 {[%clk 0:00:03.6]} 33... Nxc4 {[%clk 0:00:30.3]} 34. Rxc4 {[%clk
0:00:04.5]} 34... bxc5 {[%clk 0:00:31.2]} 35. bxc5 {[%clk 0:00:04.6]} 35... Re3
{[%clk 0:00:30.2]} 36. Kg2 {[%clk 0:00:03.4]} 36... Rxa3 {[%clk 0:00:29.7]} 37.
c6 {[%clk 0:00:03.8]} 37... Rc8 {[%clk 0:00:29.6]} 38. c7 {[%clk 0:00:03.8]}
38... Ra5 {[%clk 0:00:29.3]} 39. Rc6 {[%clk 0:00:02.4]} 39... Rb5 {[%clk
0:00:26.6]} 40. Kf3 {[%clk 0:00:01.9]} 40... a5 {[%clk 0:00:26]} 41. Ke4 {[%clk
0:00:01.6]} 41... a4 {[%clk 0:00:25.8]} 42. Nd5 {[%clk 0:00:01.7]} 42... a3
{[%clk 0:00:21.2]} 43. Ne7 {[%clk 0:00:02]} 43... Re8 {[%clk 0:00:19.8]} 44.
c8=Q {[%clk 0:00:01.9]} 44... Rxe7+ {[%clk 0:00:17]} 45. Kf3 {[%clk 0:00:02.1]}
45... Rb3+ {[%clk 0:00:16.4]} 46. Rc3 {[%clk 0:00:02.6]} 46... a2 {[%clk
0:00:12.6]} 47. Rxb3 {[%clk 0:00:02.8]} 47... a1=Q {[%clk 0:00:11.7]} 48. Qc3+
{[%clk 0:00:03.3]} 48... Qxc3+ {[%clk 0:00:11]} 49. Rxc3 {[%clk 0:00:04.2]}
49... Re5 {[%clk 0:00:11.2]} 50. Kg2 {[%clk 0:00:04.5]} 50... Kf6 {[%clk
0:00:11]} 51. Ra3 {[%clk 0:00:05]} 51... Rf5 {[%clk 0:00:11.9]} 52. Ra6+ {[%clk
0:00:04.8]} 52... Kg7 {[%clk 0:00:11.4]} 53. Ra4 {[%clk 0:00:04.9]} 53... Rb5
{[%clk 0:00:11.3]} 54. Ra3 {[%clk 0:00:05.2]} 54... Rb4 {[%clk 0:00:11.2]} 55.
Kf3 {[%clk 0:00:05.7]} 55... f5 {[%clk 0:00:11.1]} 56. Ra6 {[%clk 0:00:05.9]}
56... Kh6 {[%clk 0:00:12]} 57. Rc6 {[%clk 0:00:05]} 57... Rb3+ {[%clk
0:00:11.8]} 58. Kf4 {[%clk 0:00:04.4]} 58... Ra3 {[%clk 0:00:10.7]} 59. Rc8
{[%clk 0:00:04.1]} 59... Kg7 {[%clk 0:00:09.6]} 60. Rc7+ {[%clk 0:00:03.8]}
60... Kh6 {[%clk 0:00:09.4]} 61. Rc8 {[%clk 0:00:03.6]} 61... Ra1 {[%clk
0:00:09.3]} 62. Rc7 {[%clk 0:00:03.1]} 62... Rf1+ {[%clk 0:00:08.4]} 63. Ke3
{[%clk 0:00:03.6]} 63... f4+ {[%clk 0:00:08.1]} 64. gxf4 {[%clk 0:00:03.5]}
64... Rh1 {[%clk 0:00:09]} 65. f5 {[%clk 0:00:01.4]} 65... Rh3+ {[%clk
0:00:06.9]} 66. Kf4 {[%clk 0:00:02.3]} 66... Rxh4+ {[%clk 0:00:06.6]} 67. Ke5
{[%clk 0:00:03.2]} 67... gxf5 {[%clk 0:00:03.3]} 68. Kxf5 {[%clk 0:00:04.1]}
68... Rg4 {[%clk 0:00:03.9]} 69. Rc6+ {[%clk 0:00:04.2]} 69... Kh7 {[%clk
0:00:03.8]} 70. Rc7+ {[%clk 0:00:04.6]} 70... Kh6 {[%clk 0:00:03.8]} 71. Rc6+
{[%clk 0:00:05.1]} 71... Kg7 {[%clk 0:00:04.7]} 72. Rc7+ {[%clk 0:00:05.7]}
72... Kh6 {[%clk 0:00:05.6]} 1/2-1/2

[Event "*** SCC Grand Prix: Titled Tuesday Blitz"]
[Site "Chess.com"]
[Date "2020.08.04"]
[Round "2"]
[White "Sven_Tica"]
[Black "RaunakSadhwani2005"]
[Result "1-0"]
[WhiteElo "2643"]
[BlackElo "2959"]
[TimeControl "180+1"]
[EndTime "14:04:35 PDT"]
[Termination "Sven_Tica won by resignation"]

1. d4 {[%clk 0:03:00.9]} 1... f5 {[%clk 0:02:59.6]} 2. g3 {[%clk 0:03:00.7]}
2... Nf6 {[%clk 0:02:59.7]} 3. Bg2 {[%clk 0:03:01]} 3... g6 {[%clk 0:03:00.6]}
4. c3 {[%clk 0:02:57.9]} 4... Bg7 {[%clk 0:02:58.8]} 5. Qb3 {[%clk 0:02:58.1]}
5... Nc6 {[%clk 0:02:58.8]} 6. Nd2 {[%clk 0:02:57.3]} 6... a5 {[%clk 0:02:58.5]}
7. e4 {[%clk 0:02:56.5]} 7... a4 {[%clk 0:02:55.1]} 8. Qc2 {[%clk 0:02:51.8]}
8... fxe4 {[%clk 0:02:51.2]} 9. Nxe4 {[%clk 0:02:51.8]} 9... Nxe4 {[%clk
0:02:50]} 10. Qxe4 {[%clk 0:02:50.8]} 10... e5 {[%clk 0:02:38.4]} 11. dxe5
{[%clk 0:02:42]} 11... Qe7 {[%clk 0:02:36.4]} 12. f4 {[%clk 0:02:33.2]} 12... d6
{[%clk 0:02:33.5]} 13. exd6 {[%clk 0:02:31.8]} 13... Qxe4+ {[%clk 0:02:32.6]}
14. Bxe4 {[%clk 0:02:32.2]} 14... cxd6 {[%clk 0:02:29.8]} 15. Nf3 {[%clk
0:02:31.2]} 15... Be6 {[%clk 0:02:26.6]} 16. O-O {[%clk 0:02:25.2]} 16... O-O-O
{[%clk 0:02:25.1]} 17. Ng5 {[%clk 0:02:23.9]} 17... Bc4 {[%clk 0:02:25.1]} 18.
Rd1 {[%clk 0:02:23]} 18... d5 {[%clk 0:02:24.4]} 19. Bg2 {[%clk 0:02:18.9]}
19... Rhe8 {[%clk 0:02:17]} 20. Bh3+ {[%clk 0:02:14.9]} 20... Kb8 {[%clk
0:02:11.7]} 21. Ne6 {[%clk 0:02:15.1]} 21... Rd7 {[%clk 0:02:09.9]} 22. Nxg7
{[%clk 0:02:12.1]} 22... Rxg7 {[%clk 0:02:10.8]} 23. f5 {[%clk 0:02:12.8]} 23...
g5 {[%clk 0:02:06]} 24. f6 {[%clk 0:02:06.8]} 24... Rg6 {[%clk 0:02:05.8]} 25.
Bd7 {[%clk 0:02:02.6]} 25... Rf8 {[%clk 0:01:58.9]} 26. Bxc6 {[%clk 0:01:58.7]}
26... bxc6 {[%clk 0:01:58.6]} 27. b3 {[%clk 0:01:59.1]} 27... Bb5 {[%clk
0:01:52.1]} 28. bxa4 {[%clk 0:01:56.9]} 28... Bxa4 {[%clk 0:01:53]} 29. Rf1
{[%clk 0:01:56]} 29... Bb5 {[%clk 0:01:46.3]} 30. Rf5 {[%clk 0:01:45.8]} 30...
h6 {[%clk 0:01:39.3]} 31. f7 {[%clk 0:01:44.2]} 31... Rg7 {[%clk 0:01:37.2]} 32.
a4 {[%clk 0:01:44.4]} 32... Bd3 {[%clk 0:01:30.3]} 33. Ba3 {[%clk 0:01:28.8]}
33... Rfxf7 {[%clk 0:01:20]} 34. Bd6+ {[%clk 0:01:26.2]} 34... Kb7 {[%clk
0:01:18.1]} 35. Rxf7+ {[%clk 0:01:25.6]} 35... Rxf7 {[%clk 0:01:19]} 36. a5
{[%clk 0:01:25.8]} 36... Ka6 {[%clk 0:01:19.1]} 37. h4 {[%clk 0:01:21.5]} 37...
g4 {[%clk 0:01:18.9]} 38. Bf4 {[%clk 0:01:21.2]} 38... h5 {[%clk 0:01:17.1]} 39.
Kf2 {[%clk 0:01:21.1]} 39... Re7 {[%clk 0:01:12.7]} 40. Re1 {[%clk 0:01:21]}
40... Be4 {[%clk 0:01:10.8]} 41. Ra1 {[%clk 0:01:15.9]} 41... Rb7 {[%clk
0:01:09.7]} 42. Ke3 {[%clk 0:01:14.5]} 42... c5 {[%clk 0:00:54]} 43. Bd6 {[%clk
0:01:05.5]} 43... Rb3 {[%clk 0:00:52.4]} 44. Rc1 {[%clk 0:00:50.3]} 44... Rb5
{[%clk 0:00:49.7]} 45. Ra1 {[%clk 0:00:37.2]} 45... Bf3 {[%clk 0:00:43.9]} 46.
Kf4 {[%clk 0:00:35.1]} 46... d4 {[%clk 0:00:43.3]} 47. cxd4 {[%clk 0:00:29.3]}
47... cxd4 {[%clk 0:00:44.2]} 48. Be5 {[%clk 0:00:25.7]} 48... d3 {[%clk
0:00:39.7]} 49. Bc3 {[%clk 0:00:23.5]} 49... Rc5 {[%clk 0:00:37.3]} 50. Bd2
{[%clk 0:00:23.8]} 50... Rc2 {[%clk 0:00:35.1]} 51. Ke3 {[%clk 0:00:23.9]} 51...
Be2 {[%clk 0:00:30.1]} 52. Ra4 {[%clk 0:00:23]} 52... Rc6 {[%clk 0:00:20.1]} 53.
Re4 {[%clk 0:00:20.1]} 53... Rf6 {[%clk 0:00:19]} 54. Rf4 {[%clk 0:00:19.3]}
54... Re6+ {[%clk 0:00:18.7]} 55. Re4 {[%clk 0:00:19]} 55... Rc6 {[%clk
0:00:18.5]} 56. Re5 {[%clk 0:00:18.5]} 56... Rf6 {[%clk 0:00:17.9]} 57. Be1
{[%clk 0:00:14.6]} 57... Rh6 {[%clk 0:00:14.7]} 58. Bd2 {[%clk 0:00:14.2]} 58...
Rh7 {[%clk 0:00:13.2]} 59. Kd4 {[%clk 0:00:14.1]} 59... Rd7+ {[%clk 0:00:12.6]}
60. Ke3 {[%clk 0:00:14.4]} 60... Rh7 {[%clk 0:00:10.3]} 61. Kd4 {[%clk
0:00:14.7]} 61... Kb7 {[%clk 0:00:10.3]} 62. Be3 {[%clk 0:00:11]} 62... Rd7+
{[%clk 0:00:09]} 63. Kc3 {[%clk 0:00:11.3]} 63... Rc7+ {[%clk 0:00:09.4]} 64.
Rc5 {[%clk 0:00:11.9]} 64... Re7 {[%clk 0:00:09.8]} 65. Kd2 {[%clk 0:00:11.6]}
65... Rh7 {[%clk 0:00:08.7]} 66. Re5 {[%clk 0:00:10.1]} 66... Ka6 {[%clk
0:00:08.8]} 67. Bf4 {[%clk 0:00:09.9]} 67... Bf1 {[%clk 0:00:07.9]} 68. Be3
{[%clk 0:00:10.2]} 68... Rf7 {[%clk 0:00:05.3]} 69. Rxh5 {[%clk 0:00:09.4]}
69... Rb7 {[%clk 0:00:05.3]} 70. Bd4 {[%clk 0:00:08.4]} 70... Rb4 {[%clk
0:00:03.8]} 71. Rh6+ {[%clk 0:00:07.8]} 71... Kb7 {[%clk 0:00:02.3]} 72. Rb6+
{[%clk 0:00:07.8]} 72... Rxb6 {[%clk 0:00:02.6]} 73. axb6 {[%clk 0:00:08.4]}
73... Bg2 {[%clk 0:00:03]} 74. Kxd3 {[%clk 0:00:09]} 74... Kc6 {[%clk
0:00:03.1]} 75. Ke3 {[%clk 0:00:09.4]} 75... Kd6 {[%clk 0:00:03.4]} 76. Kf4
{[%clk 0:00:09.3]} 76... Bf3 {[%clk 0:00:04]} 77. h5 {[%clk 0:00:08]} 77... Ke6
{[%clk 0:00:04.5]} 78. h6 {[%clk 0:00:08.5]} 1-0

[Event "*** SCC Grand Prix: Titled Tuesday Blitz"]
[Site "Chess.com"]
[Date "2020.08.04"]
[Round "2"]
[White "amintabatabaei"]
[Black "Rodalquilar"]
[Result "1-0"]
[WhiteElo "2976"]
[BlackElo "2646"]
[TimeControl "180+1"]
[EndTime "14:04:36 PDT"]
[Termination "amintabatabaei won on time"]

1. e4 {[%clk 0:03:00.9]} 1... Nf6 {[%clk 0:03:00.5]} 2. e5 {[%clk 0:02:57.2]}
2... Nd5 {[%clk 0:03:00.9]} 3. d4 {[%clk 0:02:50.4]} 3... d6 {[%clk 0:03:01.1]}
4. c4 {[%clk 0:02:51.1]} 4... Nb6 {[%clk 0:03:01.2]} 5. exd6 {[%clk 0:02:52]}
5... cxd6 {[%clk 0:03:02.1]} 6. Nf3 {[%clk 0:02:48.8]} 6... g6 {[%clk
0:03:02.6]} 7. h3 {[%clk 0:02:49]} 7... Bg7 {[%clk 0:03:02.9]} 8. Be2 {[%clk
0:02:49.5]} 8... O-O {[%clk 0:03:03.2]} 9. O-O {[%clk 0:02:50]} 9... Nc6 {[%clk
0:03:03.3]} 10. d5 {[%clk 0:02:46.1]} 10... Ne5 {[%clk 0:02:47.8]} 11. Nxe5
{[%clk 0:02:46]} 11... Bxe5 {[%clk 0:02:48.7]} 12. a4 {[%clk 0:02:46.3]} 12...
a5 {[%clk 0:02:47.8]} 13. Nc3 {[%clk 0:02:43.7]} 13... Bg7 {[%clk 0:02:47.1]}
14. Nb5 {[%clk 0:02:39.8]} 14... Bd7 {[%clk 0:02:42.1]} 15. Ra2 {[%clk
0:02:39.2]} 15... Bxb5 {[%clk 0:02:34.7]} 16. axb5 {[%clk 0:02:25.9]} 16... Nd7
{[%clk 0:02:31.6]} 17. Be3 {[%clk 0:02:24.5]} 17... Nc5 {[%clk 0:02:30.3]} 18.
Qc2 {[%clk 0:02:19.3]} 18... b6 {[%clk 0:02:26.2]} 19. Re1 {[%clk 0:02:14.3]}
19... Rc8 {[%clk 0:02:20.5]} 20. Bg4 {[%clk 0:02:13.9]} 20... f5 {[%clk
0:02:13.5]} 21. Bf3 {[%clk 0:02:12.2]} 21... Bf6 {[%clk 0:01:56.3]} 22. Bh6
{[%clk 0:02:09.9]} 22... Rf7 {[%clk 0:01:54.9]} 23. Ra3 {[%clk 0:02:10.5]} 23...
Qd7 {[%clk 0:01:43]} 24. Rae3 {[%clk 0:02:08.4]} 24... a4 {[%clk 0:01:39]} 25.
Ra3 {[%clk 0:02:00.6]} 25... Be5 {[%clk 0:01:29.9]} 26. Be3 {[%clk 0:01:59.7]}
26... h5 {[%clk 0:01:25.3]} 27. Bxc5 {[%clk 0:01:59.5]} 27... Rxc5 {[%clk
0:01:17.2]} 28. Rxa4 {[%clk 0:01:59.1]} 28... Qxb5 {[%clk 0:01:13.5]} 29. Ra8+
{[%clk 0:01:59.2]} 29... Kg7 {[%clk 0:01:12.5]} 30. b3 {[%clk 0:01:57.5]} 30...
Qb4 {[%clk 0:01:09.4]} 31. Re2 {[%clk 0:01:50.4]} 31... b5 {[%clk 0:01:07.3]}
32. Rb8 {[%clk 0:01:24.4]} 32... Qa5 {[%clk 0:00:57.7]} 33. g3 {[%clk
0:01:22.7]} 33... Qc7 {[%clk 0:00:51.7]} 34. Rxb5 {[%clk 0:01:17.4]} 34... Rxb5
{[%clk 0:00:50]} 35. cxb5 {[%clk 0:01:18.3]} 35... Qb6 {[%clk 0:00:49.9]} 36.
Qc6 {[%clk 0:01:16.1]} 36... Qd4 {[%clk 0:00:26.4]} 37. b6 {[%clk 0:01:15.7]}
37... h4 {[%clk 0:00:26.6]} 38. b7 {[%clk 0:01:13.2]} 38... Rf8 {[%clk
0:00:26.9]} 39. Qc7 {[%clk 0:01:10.2]} 39... hxg3 {[%clk 0:00:22.4]} 40. b8=Q
{[%clk 0:00:57.2]} 40... Rxb8 {[%clk 0:00:19.6]} 41. Qxb8 {[%clk 0:00:56.9]}
41... gxf2+ {[%clk 0:00:18.4]} 42. Kg2 {[%clk 0:00:57.5]} 42... Qf4 {[%clk
0:00:03.5]} 43. Kxf2 {[%clk 0:00:31.5]} 43... Bd4+ {[%clk 0:00:03.8]} 44. Kg2
{[%clk 0:00:20.3]} 44... Qg5+ {[%clk 0:00:03.9]} 45. Bg4 {[%clk 0:00:20.9]}
45... fxg4 {[%clk 0:00:03.7]} 46. Qb5 {[%clk 0:00:06.6]} 46... gxh3+ {[%clk
0:00:03.1]} 47. Kxh3 {[%clk 0:00:06.1]} 47... Qh5+ {[%clk 0:00:03]} 48. Kg2
{[%clk 0:00:05.8]} 48... Qg4+ {[%clk 0:00:03.3]} 49. Kh2 {[%clk 0:00:06.5]}
49... Qg1+ {[%clk 0:00:02]} 50. Kh3 {[%clk 0:00:06.8]} 50... Qh1+ {[%clk
0:00:02.5]} 51. Kg3 {[%clk 0:00:07.3]} 51... Qg1+ {[%clk 0:00:02.6]} 52. Kf3
{[%clk 0:00:06]} 52... Qf1+ {[%clk 0:00:02.6]} 53. Ke4 {[%clk 0:00:05.8]} 53...
Be5 {[%clk 0:00:02.6]} 54. Ke3 {[%clk 0:00:02]} 54... Qf4+ {[%clk 0:00:02.6]}
55. Kd3 {[%clk 0:00:02.4]} 55... Qd4+ {[%clk 0:00:02.9]} 56. Kc2 {[%clk
0:00:03]} 56... Qc3+ {[%clk 0:00:03.5]} 57. Kd1 {[%clk 0:00:03.6]} 57... Qa1+
{[%clk 0:00:03.8]} 58. Kd2 {[%clk 0:00:04.3]} 58... Qb2+ {[%clk 0:00:03.3]} 59.
Ke3 {[%clk 0:00:03.5]} 59... Qd4+ {[%clk 0:00:03.7]} 60. Kf3 {[%clk 0:00:04.2]}
60... Qf4+ {[%clk 0:00:04]} 61. Kg2 {[%clk 0:00:04.9]} 61... Qg3+ {[%clk
0:00:04.5]} 62. Kf1 {[%clk 0:00:05.8]} 62... Qf3+ {[%clk 0:00:04.9]} 63. Ke1
{[%clk 0:00:02.8]} 63... Bc3+ {[%clk 0:00:04.9]} 64. Kd1 {[%clk 0:00:03.5]}
64... Be5 {[%clk 0:00:04.3]} 65. Qc4 {[%clk 0:00:03.7]} 65... g5 {[%clk
0:00:04.3]} 66. b4 {[%clk 0:00:02.3]} 66... g4 {[%clk 0:00:03.9]} 67. Qe4 {[%clk
0:00:02.8]} 67... Qf1+ {[%clk 0:00:02.7]} 68. Kc2 {[%clk 0:00:02.5]} 68... g3
{[%clk 0:00:03.2]} 69. Qg4+ {[%clk 0:00:02.4]} 69... Kf8 {[%clk 0:00:02.5]} 70.
b5 {[%clk 0:00:02.8]} 70... Ke8 {[%clk 0:00:02]} 71. Qc8+ {[%clk 0:00:02.9]}
71... Kf7 {[%clk 0:00:01.8]} 72. Qg4 {[%clk 0:00:03.8]} 1-0